bitfinex-derivatives/quotes_BTCF0:USTF0_20250822
["timestamp","ask_amount","ask_price","bid_price","bid_amount"]
[1755844728916,0.97430794,112980.0,112970.0,0.08436]
[1755844729116,0.97430794,112980.0,112970.0,0.06952]
[1755844730712,0.97430794,112980.0,112970.0,0.0326]
[1755844730916,0.97430794,112980.0,112970.0,0.05528]
[1755844734207,0.69482352,112980.0,112970.0,0.05528]
[1755844736723,0.97430794,112980.0,112970.0,0.05528]
[1755844738723,0.69482352,112980.0,112970.0,0.05528]
[1755844738921,0.71554432,112980.0,112970.0,0.05528]
[1755844740223,0.71554432,112980.0,112970.0,0.07175]
[1755844740428,0.99516868,112980.0,112970.0,0.11777]
[1755844741225,0.99516868,112980.0,112970.0,0.07175]
[1755844741427,0.99516868,112980.0,112970.0,0.05528]
[1755844741828,0.97444788,112980.0,112970.0,0.05528]
[1755844742227,0.99518135,112980.0,112970.0,0.05528]
[1755844742827,0.95191788,112980.0,112960.0,0.13402994]
[1755844743028,0.59771878,112970.0,112960.0,0.15049994]
[1755844743236,0.59771878,112970.0,112960.0,0.08677]
[1755844743421,0.59771878,112970.0,112960.0,0.11865]
[1755844743828,0.31816439,112970.0,112960.0,0.11865]
[1755844744423,0.31820244,112970.0,112960.0,0.11865]
[1755844745633,0.03861,112970.0,112960.0,0.11865]
[1755844745833,0.32020244,112970.0,112960.0,0.47945]
[1755844746331,0.32020244,112970.0,112960.0,1.30637]
[1755844746530,0.32220244,112970.0,112960.0,1.30637]
[1755844748434,0.02008,112970.0,112960.0,1.67450524]
[1755844749731,0.02008,112970.0,112960.0,1.3949128]
[1755844750630,0.004,112970.0,112960.0,1.67450524]
[1755844753133,0.004,112970.0,112960.0,1.92450524]
[1755844753343,0.004,112970.0,112960.0,1.98823518]
[1755844753640,0.64439244,112990.0,112960.0,2.18367048]
[1755844753835,0.68760338,112990.0,112980.0,0.08677]
[1755844754035,0.68760338,112990.0,112980.0,0.11865]
[1755844755142,0.71213338,112990.0,112980.0,0.11865]
[1755844755339,0.43254094,112990.0,112980.0,0.11865]
[1755844755546,0.71213338,112990.0,112980.0,0.11865]
[1755844755843,0.71513338,112990.0,112980.0,0.11865]
[1755844756439,0.71413338,112990.0,112980.0,0.11865]
[1755844756640,0.72615988,112990.0,112980.0,0.11865]
[1755844759833,0.72415988,112990.0,112980.0,0.11865]
[1755844761041,0.44456744,112990.0,112980.0,0.11865]
[1755844761239,0.72415988,112990.0,112980.0,0.11865]
[1755844766342,1.55031988,112990.0,112980.0,0.11865]
[1755844768250,1.55016117,112990.0,112980.0,0.11865]
[1755844769549,1.52958894,112990.0,112980.0,0.11865]
[1755844770349,1.80899494,112990.0,112980.0,0.11865]
[1755844771249,1.82956729,112990.0,112980.0,0.11898]
[1755844771841,1.55006807,112990.0,112980.0,0.11898]
[1755844772049,0.72390807,112990.0,112980.0,0.11898]
[1755844772248,1.54986807,112990.0,112980.0,0.11898]
[1755844772449,0.44440885,112990.0,112980.0,0.39847922]
[1755844772744,0.03148,112990.0,112980.0,0.67797844]
[1755844772950,0.31097922,112990.0,112980.0,1.50385844]
[1755844773345,0.31097922,112990.0,112980.0,1.86465844]
[1755844773548,0.03148,112990.0,112980.0,1.86465844]
[1755844773849,0.02108,112990.0,112980.0,2.01691548]
[1755844774247,0.02108,112990.0,112980.0,1.73741626]
[1755844774451,0.005,112990.0,112980.0,1.73731573]
[1755844775346,0.005,112990.0,112980.0,1.73811573]
[1755844775650,0.005,112990.0,112980.0,2.26751442]
[1755844775852,0.005,112990.0,112980.0,1.98811573]
[1755844776452,0.07135575,113000.0,112990.0,0.2072793]
[1755844776642,0.0393,113000.0,112990.0,0.48667799]
[1755844777553,0.0393,113000.0,112990.0,0.39815869]
[1755844777856,0.0393,113000.0,112990.0,1.22383869]
[1755844778159,0.0413,113000.0,112990.0,1.22383869]
[1755844778861,0.0423,113000.0,112990.0,1.31235799]
[1755844779669,0.11448419,113000.0,112990.0,1.31235799]
[1755844779970,0.10948419,113000.0,112990.0,1.22383869]
[1755844781168,0.10548419,113000.0,112990.0,1.22383869]
[1755844781466,0.11448419,113000.0,112990.0,1.22359869]
[1755844781671,0.11448419,113000.0,112990.0,0.11876]
[1755844781967,0.11448419,113000.0,112990.0,0.9442]
[1755844783863,0.11448419,113000.0,112990.0,0.11876]
[1755844784064,0.11448419,113000.0,112990.0,0.94408]
[1755844786071,0.77721288,113000.0,112990.0,0.91179]
[1755844786267,0.77721288,113000.0,112990.0,0.944]
[1755844786771,0.75468288,113000.0,112990.0,0.944]
[1755844787066,0.47528419,113000.0,112990.0,0.944]
[1755844787369,0.75468288,113000.0,112990.0,0.944]
[1755844788563,0.47128419,113000.0,112990.0,0.944]
[1755844788870,0.47528419,113000.0,112990.0,0.944]
[1755844791163,0.11448419,113000.0,112990.0,0.944]
[1755844791568,0.39388288,113000.0,112990.0,0.944]
[1755844792572,0.38988288,113000.0,112990.0,0.944]
[1755844792773,0.11448419,113000.0,112990.0,0.944]
[1755844794275,0.39388524,113000.0,112990.0,1.22340105]
[1755844794574,0.39388524,113000.0,112990.0,0.944]
[1755844794769,0.39388524,113000.0,112990.0,1.22340105]
[1755844795968,0.11448419,113000.0,112990.0,1.22340105]
[1755844796175,0.39388524,113000.0,112990.0,1.22340105]
[1755844798072,0.38488524,113000.0,112990.0,1.22340105]
[1755844798469,0.07518419,113000.0,112990.0,1.22340105]
[1755844798665,0.35458524,113000.0,112990.0,1.22340105]
[1755844798872,0.07518419,113000.0,112990.0,1.22340105]
[1755844799070,0.35458524,113000.0,112990.0,1.22340105]
[1755844799274,0.07518419,113000.0,112990.0,1.22340105]
[1755844799470,0.35458524,113000.0,112990.0,1.28705778]
[1755844800174,0.07518419,113000.0,112990.0,1.28705778]
[1755844800376,0.35458524,113000.0,112990.0,1.37557708]
[1755844800576,0.003,113000.0,112990.0,1.9521214]
[1755844800772,0.003,113000.0,112990.0,2.01657813]
[1755844800975,0.3658,113020.0,112990.0,2.28212343]
[1755844801168,0.03515,113020.0,113010.0,0.40068105]
[1755844801371,0.31455105,113020.0,113010.0,1.22520105]
[1755844801569,0.32155105,113020.0,113010.0,1.22520105]
[1755844801878,0.33533069,113020.0,113010.0,1.22520105]
[1755844802069,0.32833069,113020.0,113010.0,1.22520105]
[1755844802376,0.05492964,113020.0,113010.0,1.22508088]
[1755844802778,0.05492964,113020.0,113010.0,0.9458]
[1755844803173,0.12648519,113020.0,113010.0,0.9458]
[1755844803777,0.12348519,113020.0,113010.0,0.9458]
[1755844803978,0.12348519,113020.0,113010.0,0.9468]
[1755844805382,0.08133519,113020.0,113010.0,0.9468]
[1755844805681,0.001,113020.0,113010.0,1.31458448]
[1755844806776,0.03615,113020.0,113010.0,0.9466]
[1755844806977,0.32743088,113020.0,113010.0,0.9466]
[1755844807172,0.32743088,113020.0,113010.0,0.94652]
[1755844807680,0.71156088,113020.0,113010.0,0.08772]
[1755844807987,0.71156088,113020.0,113010.0,0.12228]
[1755844809569,0.71156088,113020.0,113010.0,0.05762]
[1755844811181,0.71156088,113020.0,113010.0,0.09218]
[1755844813383,0.71076088,113020.0,113010.0,0.12228]
[1755844824692,0.43148,113020.0,113010.0,0.12228]
[1755844824890,0.71076088,113020.0,113010.0,0.12228]
[1755844825594,0.71076088,113020.0,113010.0,0.12225]
[1755844825989,0.40895,113020.0,113010.0,0.12225]
[1755844826189,0.68823088,113020.0,113010.0,0.12225]
[1755844826395,0.32743088,113020.0,113010.0,0.12225]
[1755844827190,0.04815,113020.0,113010.0,0.40153088]
[1755844827690,0.04815,113020.0,113010.0,0.12225]
[1755844827896,0.71076088,113020.0,113010.0,0.08772]
[1755844828095,0.71076088,113020.0,113010.0,0.07323]
[1755844828497,0.71076088,113020.0,113010.0,0.12159]
[1755844832296,0.71076088,113020.0,113010.0,0.07323]
[1755844832891,0.71076088,113020.0,113010.0,0.10776]
[1755844833386,0.71076088,113020.0,113010.0,0.05762]
[1755844833592,0.73147794,113020.0,113010.0,0.04856]
[1755844834801,0.73147794,113020.0,113010.0,0.001]
[1755844836303,1.52078794,113020.0,113000.0,0.02426]
[1755844836493,0.03581,113000.0,112990.0,0.05213389]
[1755844836798,0.71264666,113000.0,112990.0,0.01958389]
[1755844838600,0.71064666,113000.0,112990.0,0.01958389]
[1755844838800,0.71064666,113000.0,112990.0,0.02058389]
[1755844839300,1.53356666,113000.0,112990.0,0.001]
[1755844839802,1.53356666,113000.0,112990.0,0.004]
[1755844840303,1.53356666,113000.0,112990.0,0.001]
[1755844840996,1.53356666,113000.0,112980.0,0.04752]
[1755844841198,0.40745,112990.0,112980.0,0.12109]
[1755844841405,0.68673088,112990.0,112980.0,0.12109]
[1755844842699,0.68673088,112990.0,112980.0,0.07273]
[1755844842898,0.68673088,112990.0,112980.0,0.001]
[1755844843201,0.68673088,112990.0,112980.0,0.002]
[1755844843602,0.96085566,112990.0,112960.0,0.06135]
[1755844843796,0.68673088,112970.0,112960.0,0.05681]
[1755844844302,0.68673088,112970.0,112960.0,0.09134]
[1755844844604,0.68673088,112970.0,112960.0,0.10517]
[1755844845104,0.68673088,112970.0,112960.0,0.10617]
[1755844845304,0.68673088,112970.0,112960.0,0.12209]
[1755844846592,0.76081526,112970.0,112960.0,0.12109]
[1755844847605,0.76081526,112970.0,112960.0,0.10726]
[1755844847906,0.76081526,112970.0,112960.0,0.07273]
[1755844848101,0.7698169,112970.0,112950.0,0.0668513]
[1755844848302,0.68717088,112960.0,112950.0,0.0736113]
[1755844849907,0.40889,112960.0,112950.0,0.1070813]
[1755844850106,0.68817088,112960.0,112950.0,0.1070813]
[1755844850307,0.68817088,112960.0,112950.0,0.1207813]
[1755844852406,0.40889,112960.0,112950.0,0.1207813]
[1755844852706,0.68817088,112960.0,112950.0,0.1373813]
[1755844853710,0.40889,112960.0,112950.0,0.1373813]
[1755844854009,0.68817088,112960.0,112950.0,0.1373813]
[1755844854911,0.68817088,112960.0,112950.0,0.1039113]
[1755844855111,0.40889,112960.0,112950.0,0.1236813]
[1755844855306,0.68817088,112960.0,112950.0,0.1373813]
[1755844855704,0.40889,112960.0,112950.0,0.1373813]
[1755844856204,0.68817088,112960.0,112950.0,0.1373813]
[1755844857208,0.40889,112960.0,112950.0,0.1373813]
[1755844857412,0.68817088,112960.0,112950.0,0.1373813]
[1755844858309,0.68817088,112960.0,112950.0,0.1177]
[1755844858511,0.40889,112960.0,112950.0,0.1177]
[1755844858814,0.68817088,112960.0,112950.0,0.1177]
[1755844860414,0.02505,112960.0,112950.0,0.39698088]
[1755844860614,0.02505,112960.0,112950.0,0.75778088]
[1755844860817,0.02205,112960.0,112950.0,1.58138088]
[1755844861015,0.01725,112960.0,112950.0,1.58138088]
[1755844862617,0.01725,112960.0,112950.0,1.3021]
[1755844862817,0.01725,112960.0,112950.0,1.58138088]
[1755844865628,0.01725,112960.0,112950.0,1.3021]
[1755844866522,0.01725,112960.0,112950.0,1.58138088]
[1755844867129,0.001,112960.0,112950.0,1.58138088]
[1755844867630,0.001,112960.0,112950.0,1.3021]
[1755844868121,0.001,112960.0,112950.0,1.58138088]
[1755844870026,0.001,112960.0,112950.0,1.3021]
[1755844870227,0.001,112960.0,112950.0,1.58138088]
[1755844871928,0.001,112960.0,112950.0,1.3021]
[1755844872135,0.001,112960.0,112950.0,1.58138088]
[1755844872330,0.001,112960.0,112950.0,1.3021]
[1755844872532,0.30433088,112960.0,112950.0,1.3021]
[1755844872833,0.32737088,112960.0,112950.0,1.3021]
[1755844873225,0.32737088,112960.0,112950.0,0.9413]
[1755844873420,0.68817088,112960.0,112950.0,0.1177]
[1755844873621,0.70966338,112960.0,112950.0,0.1177]
[1755844875233,0.70966338,112960.0,112950.0,0.08423]
[1755844875425,0.70966338,112960.0,112950.0,0.1177]
[1755844875829,0.70966338,112960.0,112950.0,0.08423]
[1755844876233,0.70966338,112960.0,112950.0,0.07053]
[1755844876821,0.70966338,112960.0,112950.0,0.104]
[1755844877026,0.70966338,112960.0,112940.0,0.05835]
[1755844877234,0.68816088,112950.0,112940.0,0.11509]
[1755844877727,0.70927706,112950.0,112940.0,0.08308]
[1755844878031,0.70927706,112950.0,112940.0,0.06938]
[1755844878236,0.98855794,112950.0,112940.0,0.06938]
[1755844878436,0.98855794,112950.0,112940.0,0.05401]
[1755844878637,0.96744176,112950.0,112940.0,0.05401]
[1755844878837,0.98853988,112950.0,112940.0,0.05401]
[1755844879135,0.98853988,112950.0,112940.0,0.02192]
[1755844879729,0.98853988,112950.0,112940.0,0.04465]
[1755844879928,0.98853988,112950.0,112940.0,0.05401]
[1755844881232,0.96744176,112950.0,112940.0,0.05401]
[1755844881432,0.98853295,112950.0,112940.0,0.05401]
[1755844881638,0.70925207,112950.0,112940.0,0.08602]
[1755844882237,0.70925207,112950.0,112940.0,0.10007]
[1755844882738,0.98853295,112950.0,112940.0,0.10007]
[1755844883132,0.96744176,112950.0,112940.0,0.10007]
[1755844883338,0.68816088,112950.0,112940.0,0.10007]
[1755844883838,0.70924821,112950.0,112940.0,0.10007]
[1755844884232,0.68816088,112950.0,112940.0,0.10007]
[1755844885633,0.70924495,112950.0,112940.0,0.10007]
[1755844886234,0.68816088,112950.0,112940.0,0.11544]
[1755844890343,0.40888,112950.0,112940.0,0.11544]
[1755844890641,0.68816088,112950.0,112940.0,0.11544]
[1755844891542,0.40888,112950.0,112940.0,0.11544]
[1755844891735,0.68816088,112950.0,112940.0,0.11544]
[1755844893146,0.40888,112950.0,112940.0,0.11544]
[1755844893345,0.68816088,112950.0,112940.0,0.11544]
[1755844894646,0.40888,112950.0,112940.0,0.11544]
[1755844895145,0.68816088,112950.0,112940.0,0.11544]
[1755844896945,0.40888,112950.0,112940.0,0.11544]
[1755844897742,0.68816088,112950.0,112940.0,0.11544]
[1755844898145,0.66386088,112950.0,112940.0,0.93836]
[1755844898345,0.38458,112950.0,112940.0,0.93836]
[1755844898545,0.66386088,112950.0,112940.0,0.93836]
[1755844899451,0.32736088,112950.0,112940.0,0.93836]
[1755844899949,0.32736088,112950.0,112940.0,0.11544]
[1755844901248,0.68816088,112950.0,112940.0,0.11544]
[1755844901444,0.32736088,112950.0,112940.0,0.11544]
[1755844905853,0.68816088,112950.0,112940.0,0.11544]
[1755844908555,0.40888,112950.0,112940.0,0.11544]
[1755844908755,0.68816088,112950.0,112940.0,0.11544]
[1755844908953,0.40888,112950.0,112940.0,0.11544]
[1755844909150,0.68816088,112950.0,112940.0,0.11544]
[1755844912260,0.32736088,112950.0,112940.0,0.11544]
[1755844914360,0.32736088,112950.0,112930.0,1.24167319]
[1755844914657,0.02078,112950.0,112940.0,0.07114]
[1755844914858,0.02078,112950.0,112940.0,0.11966]
[1755844915056,0.04656,112950.0,112940.0,0.11966]
[1755844915762,0.32584088,112950.0,112940.0,0.11966]
[1755844916165,0.32584088,112950.0,112940.0,0.07293]
[1755844916353,0.68664088,112950.0,112940.0,0.05686]
[1755844916963,0.96592176,112950.0,112930.0,1.27512319]
[1755844917267,0.32617088,112940.0,112930.0,0.49986319]
[1755844918364,0.32617088,112940.0,112930.0,1.29021319]
[1755844918557,0.32617088,112940.0,112930.0,1.27593319]
[1755844918968,0.32617088,112940.0,112930.0,0.94758319]
[1755844919263,0.32617088,112940.0,112930.0,0.07826319]
[1755844919663,0.32617088,112940.0,112930.0,0.10971319]
[1755844919965,0.32617088,112940.0,112930.0,0.10871319]
[1755844920361,0.32617088,112940.0,112930.0,0.12299319]
[1755844920959,0.68697088,112940.0,112930.0,0.12299319]
[1755844921761,0.68697088,112940.0,112930.0,0.13906319]
[1755844922365,0.68697088,112940.0,112930.0,0.10661319]
[1755844922559,0.68697088,112940.0,112930.0,0.09233319]
[1755844924363,0.68697088,112940.0,112930.0,0.12478319]
[1755844924561,0.68697088,112940.0,112930.0,0.13906319]
[1755844924762,0.68697088,112940.0,112930.0,0.05187319]
[1755844924961,0.68697088,112940.0,112930.0,0.04222319]
[1755844925871,0.04689,112930.0,112920.0,0.05686]
[1755844926071,0.68697088,112930.0,112920.0,0.05686]
[1755844926460,0.66119088,112930.0,112910.0,0.42229]
[1755844926664,0.32617088,112920.0,112910.0,0.11966]
[1755844927171,0.04589,112920.0,112910.0,0.11966]
[1755844927367,0.32517088,112920.0,112910.0,0.11966]
[1755844927671,0.04589,112920.0,112910.0,0.48046]
[1755844927969,0.04489,112920.0,112910.0,0.48046]
[1755844928466,0.04489,112920.0,112910.0,1.30318]
[1755844928771,0.04489,112920.0,112910.0,0.48546]
[1755844928970,0.32417088,112920.0,112910.0,0.48546]
[1755844930573,0.02211,112920.0,112910.0,0.76474088]
[1755844930777,0.02111,112920.0,112910.0,0.76474088]
[1755844931069,0.02211,112920.0,112910.0,0.76474088]
[1755844931472,0.02211,112920.0,112910.0,0.48546]
[1755844932375,0.30139088,112920.0,112910.0,0.48546]
[1755844933173,0.02211,112920.0,112910.0,0.48546]
[1755844933470,0.02211,112920.0,112910.0,1.30818]
[1755844934871,0.02211,112920.0,112910.0,1.58746088]
[1755844935370,0.68177088,112930.0,112920.0,0.11966]
[1755844935582,0.01791,112930.0,112920.0,0.39894088]
[1755844935872,0.01631,112930.0,112920.0,0.39894088]
[1755844936264,0.01631,112930.0,112920.0,0.11966]
[1755844936875,0.66386088,112940.0,112920.0,0.12066]
[1755844937078,0.68075088,112940.0,112930.0,0.11666]
[1755844937472,0.37709,112940.0,112930.0,0.13641369]
[1755844937676,0.65797088,112940.0,112930.0,0.13641369]
[1755844938174,0.68194088,112940.0,112930.0,0.13641369]
[1755844939277,0.01789,112940.0,112930.0,0.77649457]
[1755844939578,0.38477,112950.0,112940.0,0.11666]
[1755844939579,0.40266,112950.0,112940.0,0.11666]
[1755844939770,0.01789,112950.0,112940.0,0.39594088]
[1755844940076,0.83237,112960.0,112940.0,0.32571088]
[1755844940276,0.40266,112960.0,112950.0,0.11666]
[1755844940576,0.68194088,112960.0,112950.0,0.11666]
[1755844940973,0.01789,112960.0,112950.0,1.21862088]
[1755844941272,0.7452057,112970.0,112950.0,1.17235088]
[1755844941469,0.7620957,112970.0,112960.0,0.11666]
[1755844942779,0.7650957,112970.0,112960.0,0.11666]
[1755844943175,0.7670957,112970.0,112960.0,0.11666]
[1755844944183,0.48781482,112970.0,112960.0,0.11666]
[1755844944375,0.7670957,112970.0,112960.0,0.11666]
[1755844945777,0.7670957,112970.0,112960.0,0.08415]
[1755844945980,1.5896557,112970.0,112960.0,0.0335]
[1755844947384,1.5904557,112970.0,112960.0,0.0335]
[1755844947680,0.04186,112960.0,112950.0,0.0553]
[1755844947882,0.04186,112950.0,112940.0,0.08415]
[1755844948082,0.68194088,112950.0,112940.0,0.11666]
[1755844950488,0.68194088,112950.0,112940.0,0.07039]
[1755844950678,0.68194088,112950.0,112940.0,0.08415]
[1755844950980,0.68194088,112950.0,112940.0,0.11666]
[1755844951887,0.40266,112950.0,112940.0,0.11666]
[1755844952089,0.68194088,112950.0,112940.0,0.11666]
[1755844953090,0.04186,112950.0,112940.0,0.47746]
[1755844953483,0.01789,112950.0,112940.0,0.84529928]
[1755844953684,0.32114088,112960.0,112950.0,0.08415]
[1755844953877,0.32114088,112960.0,112950.0,0.11666]
[1755844954491,0.04186,112960.0,112950.0,0.11666]
[1755844954789,0.32114088,112960.0,112950.0,0.11666]
[1755844954990,0.32314088,112960.0,112950.0,0.11666]
[1755844955289,0.32414088,112960.0,112950.0,0.11666]
[1755844955686,0.04486,112960.0,112950.0,0.11666]
[1755844956082,0.32414088,112960.0,112950.0,0.11666]
[1755844958882,0.04486,112960.0,112950.0,0.11666]
[1755844959083,0.32414088,112960.0,112950.0,0.11666]
[1755844960097,0.04486,112960.0,112950.0,0.11666]
[1755844960388,0.02089,112960.0,112950.0,0.11666]
[1755844960690,0.02089,112960.0,112950.0,0.93898]
[1755844960892,0.04486,112960.0,112950.0,0.93898]
[1755844961077,0.32414088,112960.0,112950.0,0.93898]
[1755844962093,0.30017088,112960.0,112950.0,0.93898]
[1755844962991,0.02089,112960.0,112950.0,0.93898]
[1755844963288,0.003,112960.0,112950.0,0.93898]
[1755844964991,0.04486,112960.0,112950.0,0.93898]
[1755844965190,0.32414088,112960.0,112950.0,0.93898]
[1755844965690,0.30017088,112960.0,112950.0,0.93898]
[1755844966291,0.02089,112960.0,112950.0,0.93898]
[1755844967390,0.04379,112960.0,112950.0,0.93898]
[1755844967592,0.32307088,112960.0,112950.0,0.93898]
[1755844969594,0.32307088,112960.0,112950.0,0.11666]
[1755844969796,0.32307088,112960.0,112950.0,0.9389]
[1755844970196,0.30017088,112960.0,112950.0,0.9389]
[1755844970593,0.003,112960.0,112950.0,1.21818088]
[1755844970797,0.02037,112960.0,112950.0,1.21818088]
[1755844970999,0.02037,112960.0,112950.0,0.9389]
[1755844971687,0.01877,112960.0,112950.0,0.9389]
[1755844974491,0.003,112960.0,112950.0,0.9389]
[1755844975997,0.28228088,112960.0,112950.0,0.9389]
[1755844976185,0.003,112960.0,112950.0,0.9389]
[1755844976498,0.28228088,112960.0,112950.0,0.9389]
[1755844977491,0.003,112960.0,112950.0,0.9389]
[1755844979002,0.29965088,112960.0,112950.0,0.9389]
[1755844979298,0.32355088,112960.0,112950.0,0.93882]
[1755844979498,0.30065088,112960.0,112950.0,0.11666]
[1755844983603,0.02137,112960.0,112950.0,0.11666]
[1755844983803,0.32355088,112960.0,112950.0,0.11666]
[1755844984001,0.68435088,112960.0,112950.0,0.08415]
[1755844984197,0.68435088,112960.0,112950.0,0.11862]
[1755844985507,0.32355088,112960.0,112950.0,0.11862]
[1755844986705,0.04427,112960.0,112950.0,0.11862]
[1755844986906,0.32355088,112960.0,112950.0,0.11862]
[1755844987606,0.30065088,112960.0,112950.0,0.11862]
[1755844987905,0.02137,112960.0,112950.0,0.11862]
[1755844988206,0.30065088,112960.0,112950.0,0.11862]
[1755844988405,0.58057572,112960.0,112950.0,0.11862]
[1755844988606,0.58057572,112960.0,112950.0,0.39822286]
[1755844988799,0.96427572,112960.0,112950.0,0.11862]
[1755844990308,0.68471109,112960.0,112950.0,0.11862]
[1755844991214,0.40507,112960.0,112950.0,0.11862]
[1755844991401,0.68471109,112960.0,112950.0,0.11862]
[1755844993108,0.32391109,112960.0,112950.0,0.11862]
[1755844995512,0.04427,112960.0,112950.0,0.11862]
[1755844995722,0.32391109,112960.0,112950.0,0.11862]
[1755844996024,0.04427,112960.0,112950.0,0.11862]
[1755844996214,0.68471109,112960.0,112950.0,0.08415]
[1755844996415,0.68471109,112960.0,112950.0,0.0553]
[1755844998111,1.78719218,112960.0,112950.0,0.03134]
[1755844998316,1.78719218,112960.0,112940.0,0.1173]
[1755844998317,0.0427,112950.0,112940.0,0.1173]
[1755844998521,0.68314109,112950.0,112940.0,0.1173]
[1755844999323,0.32234109,112950.0,112940.0,0.1173]
[1755845000522,0.68314109,112950.0,112940.0,0.1173]
[1755845002824,0.96278218,112950.0,112940.0,0.05403]
[1755845003233,0.68314109,112950.0,112940.0,0.1173]
[1755845004133,0.96278218,112950.0,112940.0,0.1173]
[1755845004330,0.96278218,112950.0,112940.0,0.06967]
[1755845004630,0.68414109,112950.0,112940.0,0.06967]
[1755845005031,0.68614109,112950.0,112940.0,0.06967]
[1755845005332,0.4065,112950.0,112940.0,0.10235]
[1755845005528,0.68614109,112950.0,112930.0,0.87796369]
[1755845005729,0.32234109,112940.0,112930.0,0.13705369]
[1755845007233,0.0427,112940.0,112930.0,0.13705369]
[1755845007433,0.32234109,112940.0,112930.0,0.13705369]
[1755845010433,0.60216354,112940.0,112930.0,0.13705369]
[1755845010635,0.0427,112930.0,112920.0,0.08462]
[1755845010837,0.68323177,112930.0,112920.0,0.1173]
[1755845012139,0.4035,112930.0,112920.0,0.1173]
[1755845012334,0.68323177,112930.0,112920.0,0.1173]
[1755845014032,0.68323177,112930.0,112920.0,0.08462]
[1755845014234,0.68323177,112930.0,112920.0,0.1173]
[1755845014435,0.69215467,112930.0,112920.0,0.1173]
[1755845015443,0.41238672,112930.0,112920.0,0.1173]
[1755845015644,0.69215467,112930.0,112920.0,0.1173]
[1755845015943,0.41238672,112930.0,112920.0,0.1173]
[1755845018241,0.69215467,112930.0,112920.0,0.03281]
[1755845018541,0.0427,112920.0,112910.0,0.1173]
[1755845019637,0.0427,112920.0,112910.0,0.08462]
[1755845019844,0.0427,112920.0,112910.0,0.1183]
[1755845020644,0.0427,112920.0,112910.0,0.1193]
[1755845022846,0.0427,112920.0,112910.0,0.75986795]
[1755845023444,0.01866,112920.0,112910.0,0.75986795]
[1755845025039,0.01606,112920.0,112910.0,0.4801]
[1755845025246,0.01606,112920.0,112910.0,0.75986795]
[1755845030540,0.39472672,112930.0,112910.0,0.75986795]
[1755845030847,0.40239,112940.0,112930.0,0.11949]
[1755845031336,0.37851,112940.0,112930.0,0.11949]
[1755845032546,0.37851,112940.0,112930.0,0.39925795]
[1755845032740,0.3862752,112940.0,112930.0,0.39925795]
[1755845033039,0.3846752,112940.0,112930.0,0.39925795]
[1755845033544,0.3876752,112940.0,112930.0,0.39925795]
[1755845034146,0.37891,112940.0,112930.0,0.39925795]
[1755845034346,0.3638,112940.0,112930.0,0.39925795]
[1755845034846,0.38151,112940.0,112930.0,0.39925795]
[1755845036242,0.37891,112940.0,112930.0,0.39925795]
[1755845038144,0.37891,112940.0,112930.0,0.11949]
[1755845038349,0.37891,112940.0,112930.0,0.39925795]
[1755845038953,0.38051,112940.0,112930.0,0.39925795]
[1755845039350,0.38151,112940.0,112930.0,0.39925795]
[1755845041443,0.01811,112940.0,112930.0,0.39925795]
[1755845041646,0.003,112940.0,112930.0,0.76005795]
[1755845042351,0.003,112940.0,112930.0,1.12810378]
[1755845043150,0.003,112940.0,112930.0,1.12890378]
[1755845043541,0.002,112940.0,112930.0,1.12890378]
[1755845043945,0.04679,112960.0,112950.0,0.39911379]
[1755845044146,0.02291,112960.0,112950.0,0.39911379]
[1755845044348,0.02291,112960.0,112950.0,0.39907593]
[1755845044649,0.02291,112960.0,112950.0,0.11949]
[1755845044854,0.02291,112960.0,112950.0,0.39907593]
[1755845045144,0.04679,112960.0,112950.0,0.11949]
[1755845046041,0.04879,112960.0,112950.0,0.11949]
[1755845046350,0.05179,112960.0,112950.0,0.11949]
[1755845046744,0.02791,112960.0,112950.0,0.11949]
[1755845047550,0.02171,112960.0,112950.0,0.39907593]
[1755845047853,0.005,112960.0,112950.0,0.75987593]
[1755845048753,0.002,112960.0,112950.0,0.75987593]
[1755845049055,0.001,112960.0,112950.0,0.77570613]
[1755845049253,0.001,112960.0,112950.0,0.83485613]
[1755845049654,0.001,112960.0,112950.0,0.84842613]
[1755845049953,0.001,112960.0,112950.0,0.75987593]
[1755845050157,0.001,112960.0,112950.0,0.48029]
[1755845050357,0.02291,112960.0,112950.0,0.48029]
[1755845050556,0.02391,112960.0,112950.0,1.58191593]
[1755845050855,0.02291,112960.0,112950.0,1.58191593]
[1755845051058,0.01931,112960.0,112950.0,1.30233]
[1755845051355,0.01611,112960.0,112950.0,1.58191593]
[1755845051558,0.001,112960.0,112950.0,1.58191593]
[1755845052456,0.001,112960.0,112950.0,1.67046643]
[1755845052854,0.001,112960.0,112950.0,1.58191593]
[1755845053257,0.001,112960.0,112950.0,1.30233]
[1755845053458,0.001,112960.0,112950.0,1.58191593]
[1755845053756,0.001,112960.0,112950.0,1.67046643]
[1755845053959,0.001,112960.0,112950.0,1.95005236]
[1755845054159,0.001,112960.0,112950.0,1.67046643]
[1755845054354,0.001,112960.0,112950.0,1.58191593]
[1755845055362,0.001,112960.0,112950.0,0.75987593]
[1755845055660,0.0062,112960.0,112950.0,1.58183593]
[1755845055861,0.001,112960.0,112950.0,1.58183593]
[1755845056761,0.001,112960.0,112950.0,1.30225]
[1755845057058,0.001,112960.0,112950.0,1.60163461]
[1755845057654,0.001,112960.0,112950.0,1.69018511]
[1755845058163,0.001,112960.0,112950.0,1.60163461]
[1755845058362,0.001,112960.0,112950.0,1.69018511]
[1755845059765,0.001,112960.0,112950.0,1.41059918]
[1755845059956,0.001,112960.0,112950.0,1.69018511]
[1755845060667,0.001,112960.0,112950.0,1.96977104]
[1755845060965,0.001,112960.0,112950.0,1.69018511]
[1755845062464,0.44096337,112970.0,112960.0,0.11797]
[1755845062763,0.44096337,112970.0,112960.0,0.39755593]
[1755845063563,0.44296337,112970.0,112960.0,0.39755593]
[1755845064261,0.43388438,112970.0,112960.0,0.39755593]
[1755845064562,0.07308438,112970.0,112960.0,0.39755593]
[1755845064764,0.07508438,112970.0,112960.0,0.39755593]
[1755845065565,0.07308438,112970.0,112960.0,0.39755593]
[1755845065865,0.07108438,112970.0,112960.0,0.39755593]
[1755845066064,0.001,112970.0,112960.0,0.39755593]